bitfinex-derivatives/quotes_BTCF0:USTF0_20250429
["timestamp","ask_amount","ask_price","bid_price","bid_amount"]
[1745919486163,0.210477,94989.0,94988.0,0.3631792]
[1745919489159,0.210477,94989.0,94988.0,0.2431792]
[1745919493770,0.210477,94989.0,94988.0,0.2421792]
[1745919494972,0.210477,94989.0,94988.0,0.0317]
[1745919495274,0.2104836,94986.0,94985.0,0.00105279]
[1745919495967,0.3060836,94986.0,94985.0,0.00105279]
[1745919496162,0.4260836,94986.0,94985.0,0.00105279]
[1745919496873,0.7878836,94986.0,94985.0,0.00105279]
[1745919497173,0.7888836,94986.0,94985.0,0.00105279]
[1745919498467,0.7878836,94986.0,94985.0,0.00105279]
[1745919498664,0.7888836,94986.0,94985.0,0.00105279]
[1745919499065,0.7868836,94986.0,94985.0,0.00105279]
[1745919499370,0.7888836,94986.0,94985.0,0.00105279]
[1745919499673,0.7878836,94986.0,94985.0,0.00105279]
[1745919499862,0.7888836,94986.0,94985.0,0.00105279]
[1745919501169,0.0526234,94982.0,94975.0,0.0302]
[1745919501375,0.5713058,94976.0,94975.0,0.26313]
[1745919502263,0.6359058,94976.0,94975.0,0.26413]
[1745919502462,0.6359058,94976.0,94975.0,0.2125031]
[1745919502668,0.68936451,94976.0,94975.0,0.2125031]
[1745919502863,0.68936451,94976.0,94975.0,0.2115031]
[1745919503063,0.68936451,94976.0,94975.0,0.2105031]
[1745919504065,0.80936451,94976.0,94975.0,0.2105031]
[1745919505771,0.210508,94975.0,94974.0,0.0315]
[1745919505977,0.2105279,94966.0,94963.0,0.2105338]
[1745919506166,0.5713279,94966.0,94958.0,0.033]
[1745919506362,0.5713279,94966.0,94956.0,0.0309]
[1745919506562,0.5713279,94966.0,94959.0,0.2105426]
[1745919506765,0.5713279,94966.0,94958.0,0.2105436]
[1745919507170,0.6913279,94966.0,94959.0,0.2105425]
[1745919507364,0.2105412,94960.0,94959.0,0.2105425]
[1745919507565,0.6384612,94960.0,94959.0,0.2105425]
[1745919508270,0.8233612,94960.0,94959.0,0.2105425]
[1745919508862,0.8233612,94960.0,94959.0,0.2145425]
[1745919510574,0.8233612,94960.0,94959.0,0.004]
[1745919511271,0.8233612,94960.0,94959.0,0.2135434]
[1745919511468,0.8233612,94960.0,94959.0,0.2125434]
[1745919511667,0.54792,94960.0,94959.0,0.2125434]
[1745919511869,0.54792,94960.0,94959.0,0.3059434]
[1745919512070,0.4808,94960.0,94959.0,0.3059434]
[1745919512381,0.5713412,94960.0,94959.0,0.3059434]
[1745919512578,0.3608,94960.0,94959.0,0.3059434]
[1745919513577,0.06712,94961.0,94960.0,0.2105412]
[1745919513872,0.06712,94961.0,94960.0,0.2754412]
[1745919514073,0.06712,94961.0,94960.0,0.3954412]
[1745919515177,0.06712,94961.0,94960.0,0.3964412]
[1745919516175,0.277659,94961.0,94960.0,0.3974412]
[1745919516483,0.277659,94961.0,94960.0,0.3994412]
[1745919516964,0.06712,94961.0,94960.0,0.3974412]
[1745919517165,0.06712,94961.0,94960.0,0.3994412]
[1745919517768,0.06712,94961.0,94960.0,0.3974412]
[1745919517967,0.06712,94961.0,94960.0,0.3994412]
[1745919518470,0.06712,94961.0,94960.0,0.3974412]
[1745919518675,0.06712,94961.0,94960.0,0.3994412]
[1745919519076,0.0328,94974.0,94971.0,0.2105168]
[1745919519077,0.06708,94972.0,94971.0,0.2105168]
[1745919519880,0.06708,94972.0,94971.0,0.2728168]
[1745919521782,0.06708,94972.0,94971.0,0.2738168]
[1745919521983,0.06708,94972.0,94971.0,0.2748168]
[1745919525088,0.10028,94972.0,94971.0,0.2748168]
[1745919527677,0.10028,94972.0,94971.0,0.2738168]
[1745919527878,0.10028,94972.0,94971.0,0.2758168]
[1745919528282,0.10028,94972.0,94971.0,0.2738168]
[1745919528473,0.10028,94972.0,94971.0,0.2758168]
[1745919529485,0.10028,94972.0,94971.0,0.2748168]
[1745919529679,0.10028,94972.0,94971.0,0.2758168]
[1745919536080,0.13118,94972.0,94971.0,0.2758168]
[1745919537278,0.13118,94972.0,94971.0,0.2748168]
[1745919538087,0.13118,94972.0,94971.0,0.2447168]
[1745919538278,0.13118,94972.0,94971.0,0.2437168]
[1745919538478,0.13118,94972.0,94971.0,0.2125168]
[1745919538683,0.3416946,94972.0,94971.0,0.2125168]
[1745919539385,0.0641,94972.0,94971.0,0.2125168]
[1745919539990,0.0641,94972.0,94971.0,0.2115168]
[1745919540190,0.0641,94972.0,94971.0,0.2125168]
[1745919543089,0.2746146,94972.0,94971.0,0.2125168]
[1745919543685,0.0641,94972.0,94971.0,0.2125168]
[1745919545289,0.0641,94972.0,94971.0,0.2115168]
[1745919545696,0.0641,94972.0,94971.0,0.2125168]
[1745919546089,0.0641,94972.0,94971.0,0.2115168]
[1745919546287,0.0641,94972.0,94971.0,0.2125168]
[1745919546991,0.0641,94972.0,94971.0,0.2115168]
[1745919547187,0.0641,94972.0,94971.0,0.2446168]
[1745919547691,0.0332,94972.0,94971.0,0.2446168]
[1745919549490,0.05345871,94976.0,94975.0,0.210508]
[1745919549690,0.06708,94977.0,94976.0,0.2105058]
[1745919550301,0.11211386,94977.0,94976.0,0.2105058]
[1745919551194,0.11211386,94977.0,94976.0,0.2763058]
[1745919551893,0.11211386,94977.0,94976.0,0.2783058]
[1745919562820,0.06708,94987.0,94986.0,0.2104836]
[1745919563209,0.0306,94988.0,94987.0,0.2104814]
[1745919563409,0.0306,94988.0,94987.0,0.2719814]
[1745919564122,0.06708,94995.0,94994.0,0.2104659]
[1745919565025,0.11205077,94995.0,94994.0,0.2719659]
[1745919565414,0.06708,94995.0,94994.0,0.0615]
[1745919565619,0.06708,94995.0,94994.0,0.2719659]
[1745919565817,0.0306,95003.0,95002.0,0.2104482]
[1745919566214,0.1506,95003.0,95002.0,0.2104482]
[1745919566616,0.1950726,95003.0,95002.0,0.2104482]
[1745919567216,0.1950726,95003.0,95002.0,0.2423482]
[1745919568812,0.1950726,95003.0,95002.0,0.2724482]
[1745919569020,0.1644726,95003.0,95002.0,0.2724482]
[1745919569212,0.0748726,95003.0,95002.0,0.2724482]
[1745919569811,0.0748726,95003.0,95002.0,0.2744482]
[1745919570415,0.0748726,95003.0,95002.0,0.2754482]
[1745919571212,0.0748726,95003.0,95002.0,0.2764482]
[1745919571419,0.0748726,95003.0,95002.0,0.2463482]
[1745919573522,0.1070726,95003.0,95002.0,0.2463482]
[1745919574116,0.2270726,95003.0,95002.0,0.2463482]
[1745919574317,0.2270726,95003.0,95002.0,0.0359]
[1745919574511,0.2270726,95003.0,95002.0,0.2463482]
[1745919576218,0.2270726,95003.0,95002.0,0.2443482]
[1745919576415,0.2270726,95003.0,95002.0,0.2463482]
[1745919576823,0.2270726,95003.0,95002.0,0.2443482]
[1745919577031,0.2270726,95003.0,95002.0,0.2463482]
[1745919595240,0.2270726,95003.0,95002.0,0.4568682]
[1745919602646,0.2630996,94994.0,94984.0,0.3608]
[1745919602942,0.2630996,94994.0,94981.0,0.4717232]
[1745919602943,0.2630878,94992.0,94991.0,0.2104703]
[1745919603348,0.4855203,94992.0,94991.0,0.2104703]
[1745919604152,0.39505,94992.0,94991.0,0.2104703]
[1745919604341,0.39505,94992.0,94991.0,0.2410703]
[1745919604544,0.39505,94992.0,94991.0,0.2450703]
[1745919604744,0.36275,94992.0,94991.0,0.2450703]
[1745919604950,0.36275,94992.0,94991.0,0.5161203]
[1745919604951,0.1522,94992.0,94991.0,0.5161203]
[1745919605245,0.1522,94992.0,94991.0,0.5121203]
[1745919605444,0.1522,94992.0,94991.0,0.5131203]
[1745919605640,0.12,94992.0,94991.0,0.5131203]
[1745919607445,0.12,94992.0,94991.0,0.5151203]
[1745919607952,0.1114726,95003.0,95002.0,0.2104482]
[1745919608451,0.3219926,95003.0,95002.0,0.4209682]
[1745919609241,0.5063926,95003.0,95002.0,0.4517682]
[1745919609643,0.2958726,95003.0,95002.0,0.4517682]
[1745919610838,0.067,95013.0,95002.0,0.27162]
[1745919611155,0.12,95010.0,95009.0,0.2630406]
[1745919611347,0.067,95018.0,95015.0,0.2104194]
[1745919611547,0.067,95018.0,95015.0,0.5712194]
[1745919611740,0.03825736,95017.0,95015.0,0.7817094]
[1745919612138,0.067,95018.0,95015.0,0.7817094]
[1745919612748,0.10368298,95018.0,95015.0,0.7817094]
[1745919613851,0.003,95016.0,95015.0,0.7817094]
[1745919614046,0.004,95016.0,95015.0,0.7817094]
[1745919614550,0.2144171,95016.0,95015.0,0.4209094]
[1745919615051,0.4249071,95016.0,95015.0,0.4209094]
[1745919615251,0.6072071,95016.0,95015.0,0.2104194]
[1745919615659,0.39679,95016.0,95015.0,0.2104194]
[1745919615950,0.6072071,95016.0,95015.0,0.2104194]
[1745919622060,0.39679,95016.0,95015.0,0.2104194]
[1745919622359,0.6072071,95016.0,95015.0,0.2104194]
[1745919625458,0.39679,95016.0,95015.0,0.2104194]
[1745919625659,0.6072071,95016.0,95015.0,0.2104194]
[1745919626547,0.39679,95016.0,95015.0,0.2104194]
[1745919628553,0.39679,95016.0,95015.0,0.2406194]
[1745919629365,0.6072071,95016.0,95015.0,0.2406194]
[1745919635561,0.9680071,95016.0,95015.0,0.2406194]
[1745919651968,0.9367071,95016.0,95015.0,0.2406194]
[1745919652269,0.124,95016.0,95015.0,0.4511094]
[1745919652464,0.124,95016.0,95015.0,0.4833094]
[1745919653265,0.004,95016.0,95015.0,0.4833094]
[1745919655071,0.124,95016.0,95015.0,0.4833094]
[1745919656469,0.3344171,95016.0,95015.0,0.4833094]
[1745919656861,0.3344171,95016.0,95015.0,0.4511094]
[1745919657068,0.3973171,95016.0,95015.0,0.4511094]
[1745919657267,0.7581171,95016.0,95015.0,0.4511094]
[1745919657467,0.9363071,95016.0,95015.0,0.2406194]
[1745919657773,0.9686071,95016.0,95015.0,0.2406194]
[1745919670475,0.6078071,95016.0,95015.0,0.2406194]
[1745919670672,0.9686071,95016.0,95015.0,0.2406194]
[1745919672871,0.6078071,95016.0,95015.0,0.2406194]
[1745919673072,0.9686071,95016.0,95015.0,0.2406194]
[1745919673471,0.6078071,95016.0,95015.0,0.2406194]
[1745919673684,0.9686071,95016.0,95015.0,0.2406194]
[1745919674480,0.6078071,95016.0,95015.0,0.2406194]
[1745919674681,0.9686071,95016.0,95015.0,0.2406194]
[1745919675973,0.6078071,95016.0,95015.0,0.2406194]
[1745919676174,0.9686071,95016.0,95015.0,0.2406194]
[1745919676377,0.9686071,95016.0,95015.0,0.0302]
[1745919676680,0.9686071,95016.0,95015.0,0.2406194]
[1745919677584,0.9686071,95016.0,95015.0,0.0302]
[1745919677880,0.9686071,95016.0,95015.0,0.2406194]
[1745919679479,0.7581171,95016.0,95015.0,0.2406194]
[1745919679678,0.9686071,95016.0,95015.0,0.2406194]
[1745919680387,0.9686071,95016.0,95014.0,0.0303]
[1745919680587,0.4509094,95015.0,95014.0,0.2407216]
[1745919680989,0.4840094,95015.0,95014.0,0.4512116]
[1745919681203,0.6040094,95015.0,95014.0,0.4512116]
[1745919682288,0.6060094,95015.0,95014.0,0.4512116]
[1745919683790,0.6060094,95015.0,95014.0,0.4840116]
[1745919686191,0.3955194,95015.0,95014.0,0.2735216]
[1745919686393,0.6060094,95015.0,95014.0,0.4840116]
[1745919702989,0.6060094,95015.0,95014.0,0.5157116]
[1745919705590,0.122,95015.0,95014.0,0.5157116]
[1745919706197,0.002,95015.0,95014.0,0.5157116]
[1745919706698,0.2124194,95015.0,95014.0,0.5157116]
[1745919707198,0.6373194,95015.0,95014.0,0.4840116]
[1745919708002,0.6373194,95015.0,95014.0,0.5143116]
[1745919709002,0.002,95015.0,95014.0,0.5143116]
[1745919709203,0.2124194,95015.0,95014.0,0.5143116]
[1745919709801,0.002,95015.0,95014.0,0.5143116]
[1745919712097,0.2124194,95015.0,95014.0,0.5143116]
[1745919717302,0.002,95015.0,95014.0,0.5143116]
[1745919718803,0.2124194,95015.0,95014.0,0.5143116]
[1745919719396,0.002,95015.0,95014.0,0.5143116]
[1745919719596,0.0352,95015.0,95014.0,0.5143116]
[1745919720306,0.0674,95015.0,95014.0,0.5143116]
[1745919722511,0.2778194,95015.0,95014.0,0.5143116]
[1745919722809,0.0674,95015.0,95014.0,0.5143116]
[1745919727115,0.6386194,95015.0,95014.0,0.5143116]
[1745919729706,0.6386194,95015.0,95014.0,0.4840116]
[1745919730812,0.2778194,95015.0,95014.0,0.4840116]
[1745919731107,0.6386194,95015.0,95014.0,0.4840116]
[1745919732603,0.2778194,95015.0,95014.0,0.4840116]
[1745919732812,0.6386194,95015.0,95014.0,0.4840116]
[1745919733110,0.6386194,95015.0,95014.0,0.4537116]
[1745919733310,0.6386194,95015.0,95014.0,0.2104216]
[1745919733722,0.8491094,95015.0,95014.0,0.2104216]
[1745919733911,0.8491094,95015.0,95014.0,0.2435216]
[1745919736217,0.9691094,95015.0,95014.0,0.2435216]
[1745919736412,0.75869,95015.0,95014.0,0.2435216]
[1745919737015,0.9691094,95015.0,95014.0,0.2435216]
[1745919737519,0.6083094,95015.0,95014.0,0.2435216]
[1745919737812,0.9691094,95015.0,95014.0,0.2435216]
[1745919738013,0.7586194,95015.0,95014.0,0.2435216]
[1745919738216,0.8491094,95015.0,95014.0,0.2435216]
[1745919739007,0.4883094,95015.0,95014.0,0.2435216]
[1745919739213,0.8491094,95015.0,95014.0,0.2435216]
[1745919739417,0.6386194,95015.0,95014.0,0.2435216]
[1745919739611,0.8491094,95015.0,95014.0,0.2435216]
[1745919739810,0.6386194,95015.0,95014.0,0.2435216]
[1745919740007,0.4883094,95015.0,95014.0,0.2435216]
[1745919740207,0.8491094,95015.0,95014.0,0.2435216]
[1745919740507,0.6386194,95015.0,95014.0,0.2435216]
[1745919740707,0.63869,95015.0,95014.0,0.2435216]
[1745919740921,0.396,95015.0,95014.0,0.4540116]
[1745919741107,0.1552,95015.0,95014.0,0.5175116]
[1745919742416,0.0352,95015.0,95014.0,0.5175116]
[1745919743021,0.0661,95015.0,95014.0,0.5175116]
[1745919743221,0.1861,95015.0,95014.0,0.5175116]
[1745919744621,0.3965194,95015.0,95014.0,0.4540116]
[1745919744823,0.1861,95015.0,95014.0,0.4540116]
[1745919745824,0.3965194,95015.0,95014.0,0.4540116]
[1745919746122,0.1861,95015.0,95014.0,0.4540116]
[1745919746525,0.1861,95015.0,95014.0,0.2435216]
[1745919747913,0.39659,95015.0,95014.0,0.2435216]
[1745919748222,0.1861,95015.0,95014.0,0.2435216]
[1745919748423,0.39659,95015.0,95014.0,0.2435216]
[1745919748626,0.1861,95015.0,95014.0,0.2435216]
[1745919748928,0.39659,95015.0,95014.0,0.2435216]
[1745919749111,0.1861,95015.0,95014.0,0.2435216]
[1745919749925,0.39659,95015.0,95014.0,0.2435216]
[1745919750123,0.1861,95015.0,95014.0,0.2435216]
[1745919750424,0.39659,95015.0,95014.0,0.2435216]
[1745919752118,0.1861,95015.0,95014.0,0.2435216]
[1745919755221,0.0661,95015.0,95014.0,0.2435216]
[1745919755423,0.0661,95015.0,95014.0,0.2739216]
[1745919757222,0.1861,95015.0,95014.0,0.2739216]
[1745919761526,0.1861,95015.0,95014.0,0.2435216]
[1745919762128,0.2181,95015.0,95014.0,0.2435216]
[1745919764319,0.4285194,95015.0,95014.0,0.2435216]
[1745919765215,0.3085194,95015.0,95014.0,0.2435216]
[1745919766120,0.4285194,95015.0,95014.0,0.2435216]
[1745919766625,0.6390094,95015.0,95014.0,0.2435216]
[1745919766923,0.4285194,95015.0,95014.0,0.2435216]
[1745919767333,0.4285194,95015.0,95014.0,0.2104216]
[1745919767514,0.2104326,95009.0,95008.0,0.0327]
[1745919767824,0.2104614,94997.0,94996.0,0.2630625]
[1745919768225,0.4209914,94997.0,94996.0,0.2630625]
[1745919768616,0.4539914,94997.0,94996.0,0.2630625]
[1745919769236,0.6051914,94997.0,94996.0,0.2957625]
[1745919770432,0.6051914,94997.0,94996.0,0.2977625]
[1745919771122,0.6051914,94997.0,94996.0,0.2957625]
[1745919772336,0.39473,94997.0,94996.0,0.2957625]
[1745919779234,0.6051892,94997.0,94996.0,0.2957625]
[1745919780237,0.6051892,94997.0,94996.0,0.5062925]
[1745919780534,0.6051892,94997.0,94996.0,0.4735925]
[1745919780732,0.6051892,94997.0,94996.0,0.2630625]
[1745919780929,0.3946592,94997.0,94996.0,0.2630625]
[1745919781232,0.6051892,94997.0,94996.0,0.2630625]
[1745919782231,0.2104637,94995.0,94991.0,0.052618]
[1745919782438,0.2104637,94995.0,94987.0,0.05262]
[1745919782635,0.4210037,94995.0,94994.0,0.21204486]
[1745919782842,0.4523037,94995.0,94994.0,0.21204486]
[1745919783136,0.5723037,94995.0,94994.0,0.21204486]
[1745919783330,0.5723037,94995.0,94994.0,0.2104659]
[1745919784132,0.5743037,94995.0,94994.0,0.2104659]
[1745919784332,0.5763037,94995.0,94994.0,0.2104659]
[1745919785731,0.5773037,94995.0,94994.0,0.2104659]
[1745919786338,0.9381037,94995.0,94994.0,0.2104659]
[1745919786939,0.5773037,94995.0,94994.0,0.2104659]
[1745919787132,0.9381037,94995.0,94994.0,0.2104659]
[1745919787636,0.5773037,94995.0,94994.0,0.2104659]
[1745919788143,0.2104681,94993.0,94992.0,0.00157907]
[1745919788532,0.4210081,94993.0,94992.0,0.21204937]
[1745919788732,0.4866081,94993.0,94992.0,0.21204937]
[1745919789133,0.6066081,94993.0,94992.0,0.21204937]
[1745919789335,0.6734481,94993.0,94992.0,0.21204937]
[1745919790043,0.6754481,94993.0,94992.0,0.21204937]
[1745919790646,0.6774481,94993.0,94992.0,0.21204937]
[1745919791932,0.19084,94993.0,94992.0,0.48428937]
[1745919792138,0.004,94993.0,94992.0,0.60428937]
[1745919793140,0.004,94993.0,94992.0,0.48428937]
[1745919793340,0.002,94993.0,94992.0,0.48428937]
[1745919793542,0.5712643,94995.0,94994.0,0.2104659]
[1745919793935,0.3608,94995.0,94994.0,0.4210059]
[1745919794132,0.3608,94995.0,94994.0,0.4819059]
[1745919798640,0.5712637,94995.0,94994.0,0.4819059]
[1745919799755,0.3608,94995.0,94994.0,0.4819059]
[1745919801851,0.2104575,94998.0,94997.0,0.2104592]
[1745919802243,0.2104575,94998.0,94997.0,0.4209892]
[1745919802750,0.2104575,94998.0,94997.0,0.4537892]
[1745919803554,0.06684,95000.0,94999.0,0.2104548]
[1745919803753,0.2772926,95000.0,94999.0,0.2104548]
[1745919803954,0.2772926,95000.0,94999.0,0.4209848]
[1745919804150,0.3972926,95000.0,94999.0,0.4838848]
[1745919804652,0.3992926,95000.0,94999.0,0.4838848]
[1745919805151,0.2792926,95000.0,94999.0,0.4838848]
[1745919809641,0.2792926,95000.0,94999.0,0.4523848]
[1745919809642,0.3107926,95000.0,94999.0,0.4523848]
[1745919810145,0.3423926,95000.0,94999.0,0.4523848]
[1745919824845,0.2755526,95000.0,94999.0,0.4523848]
[1745919825354,0.3955526,95000.0,94999.0,0.4523848]
[1745919827163,0.2755526,95000.0,94999.0,0.4523848]
[1745919830159,0.2104681,94993.0,94992.0,0.21204827]
[1745919830458,0.2104969,94980.0,94979.0,0.4191]
[1745919830664,0.5712969,94980.0,94979.0,0.2104991]
[1745919830961,0.7818669,94980.0,94979.0,0.2104991]
[1745919831161,0.9018669,94980.0,94979.0,0.2104991]
[1745919831661,0.92623212,94980.0,94979.0,0.2104991]
[1745919832254,0.83633212,94980.0,94979.0,0.2104991]
[1745919833549,0.83633212,94980.0,94979.0,0.2134991]
[1745919833748,0.83633212,94980.0,94979.0,0.2164991]
[1745919834152,0.95633212,94980.0,94979.0,0.006]
[1745919834354,0.74583522,94980.0,94968.0,0.032]
[1745919834560,0.74583522,94980.0,94958.0,0.00797085]
[1745919834561,0.2105168,94971.0,94958.0,0.00797085]
[1745919834859,0.2105168,94971.0,94962.0,0.0526338]
[1745919835061,0.2105434,94959.0,94958.0,0.00797085]
[1745919835260,0.2105457,94958.0,94955.0,0.00105312]
[1745919835562,0.4844657,94958.0,94957.0,0.21212755]
[1745919836154,0.6044657,94958.0,94957.0,0.21212755]
[1745919838163,0.6044657,94958.0,94957.0,0.21412755]
[1745919838368,0.6044657,94958.0,94957.0,0.21612755]
[1745919840063,0.6044657,94958.0,94957.0,0.00557965]
[1745919841559,0.6044657,94958.0,94957.0,0.00357965]
[1745919841759,0.6054657,94958.0,94957.0,0.21412755]
[1745919842163,0.6044657,94958.0,94957.0,0.21412755]
[1745919842358,0.6064657,94958.0,94957.0,0.21412755]
[1745919842758,0.6064657,94958.0,94957.0,0.21212755]
[1745919842962,0.6084657,94958.0,94957.0,0.21212755]
[1745919843662,0.6064657,94958.0,94957.0,0.21212755]
[1745919843868,1.3300657,94958.0,94957.0,0.21212755]
[1745919844372,1.3290657,94958.0,94957.0,0.21212755]
[1745919844563,1.3280657,94958.0,94957.0,0.21212755]
[1745919845159,1.3948657,94958.0,94957.0,0.21212755]
[1745919846071,1.3938657,94958.0,94957.0,0.21212755]
[1745919846373,1.3948657,94958.0,94957.0,0.21212755]
[1745919846871,1.3938657,94958.0,94957.0,0.21212755]
[1745919847063,1.3948657,94958.0,94957.0,0.21212755]
[1745919847567,1.3938657,94958.0,94957.0,0.21212755]
[1745919847771,1.3948657,94958.0,94957.0,0.21212755]
[1745919848473,1.3938657,94958.0,94957.0,0.21212755]
[1745919850867,1.3948657,94958.0,94957.0,0.21212755]
[1745919851263,1.3938657,94958.0,94957.0,0.21212755]
[1745919851577,1.3948657,94958.0,94957.0,0.21212755]
[1745919853564,1.3938657,94958.0,94957.0,0.21212755]
[1745919853778,1.3948657,94958.0,94957.0,0.21212755]
[1745919856982,1.3938657,94958.0,94957.0,0.21212755]
[1745919857184,1.3948657,94958.0,94957.0,0.21212755]
[1745919857782,1.3938657,94958.0,94957.0,0.21212755]
[1745919858084,1.3948657,94958.0,94957.0,0.21212755]
[1745919859287,1.1842457,94958.0,94957.0,0.42274755]
[1745919859483,1.1842457,94958.0,94955.0,0.19126652]
[1745919859685,0.5496,94958.0,94957.0,0.2105479]
[1745919860093,0.0688,94958.0,94957.0,0.6032679]
[1745919861390,0.002,94958.0,94957.0,0.6032679]
[1745919862498,0.0668,94965.0,94958.0,0.0526361]
[1745919862687,0.0668,94965.0,94964.0,0.2105324]
[1745919863088,0.0668,94965.0,94964.0,2.0411424]
[1745919863483,0.0668,94965.0,94964.0,2.1042424]
[1745919864290,0.0668,94972.0,94971.0,0.2105168]
[1745919864697,0.0668,94972.0,94971.0,0.4211068]
[1745919865195,0.0668,94972.0,94971.0,0.6042068]
[1745919866395,0.0688,94972.0,94971.0,0.6042068]
[1745919867789,0.2793146,94972.0,94971.0,0.6042068]
[1745919868796,0.0688,94972.0,94971.0,0.6042068]
[1745919869797,0.0688,94972.0,94971.0,0.6052068]
[1745919869798,0.0668,94972.0,94971.0,0.6052068]
[1745919869988,0.0668,94972.0,94971.0,0.6062068]
[1745919871297,0.0668,94972.0,94971.0,0.6052068]
[1745919871499,0.0668,94972.0,94971.0,0.6062068]
[1745919874196,0.0668,94972.0,94971.0,0.4862068]
[1745919878905,0.0668,94972.0,94971.0,0.4852068]
[1745919879110,0.0668,94972.0,94971.0,0.4862068]
[1745919879512,0.0668,94972.0,94971.0,0.4852068]
[1745919879711,0.0668,94972.0,94971.0,0.4862068]
[1745919881410,0.1307,94972.0,94971.0,0.4862068]
[1745919881604,0.1307,94972.0,94971.0,0.4852068]
[1745919881804,0.1307,94972.0,94971.0,0.4862068]
[1745919883406,0.1307,94972.0,94971.0,0.4852068]
[1745919883597,0.1307,94972.0,94971.0,1.9862068]
[1745919883997,0.3412146,94972.0,94971.0,1.9862068]
[1745919886205,0.1307,94972.0,94971.0,1.9862068]
[1745919886405,0.0668,94972.0,94971.0,0.4862068]
[1745919887204,0.0995,94972.0,94971.0,0.4862068]
[1745919887804,0.1298,94972.0,94971.0,0.4862068]
[1745919898302,0.3403146,94972.0,94971.0,0.4862068]
[1745919898507,0.1298,94972.0,94971.0,0.4862068]
[1745919899501,0.3403146,94972.0,94971.0,0.4862068]
[1745919900017,0.1298,94972.0,94971.0,0.4862068]
[1745919900720,0.0668,94972.0,94971.0,0.4862068]
[1745919902415,0.0668,94972.0,94971.0,1.9862068]
[1745919903216,0.0333,94974.0,94973.0,0.2105124]
[1745919903413,0.0638,94974.0,94973.0,0.2105124]
[1745919903719,0.0638,94974.0,94973.0,0.4211024]
[1745919903908,0.0638,94974.0,94973.0,0.7819024]
[1745919904113,0.0638,94974.0,94973.0,2.2819024]
[1745919904517,0.0015,94975.0,94974.0,0.2105102]
[1745919904710,0.0015,94975.0,94974.0,0.4845902]
[1745919905314,0.0015,94975.0,94974.0,0.6045902]
[1745919908706,0.06676,94984.0,94983.0,0.2104902]
[1745919908906,0.08824794,94984.0,94983.0,0.2104902]
[1745919909104,0.08824794,94984.0,94983.0,0.4210502]
[1745919909513,0.08824794,94984.0,94983.0,0.4843502]
[1745919911607,0.02148794,94984.0,94983.0,0.4843502]
[1745919911813,0.002,94984.0,94983.0,0.4843502]
[1745919913919,0.02398185,94984.0,94983.0,0.4843502]
[1745919914415,0.02598185,94984.0,94983.0,0.4843502]
[1745919915516,0.02398185,94984.0,94983.0,0.4853502]
[1745919915718,0.02198185,94984.0,94983.0,0.4863502]
[1745919915914,0.062,94986.0,94985.0,0.2104858]
[1745919916320,0.062,94986.0,94985.0,0.4210458]
[1745919916624,0.062,94986.0,94985.0,1.9210458]
[1745919917614,0.062,94986.0,94985.0,1.9220458]
[1745919917825,0.06676,94992.0,94991.0,0.2104725]
[1745919918125,0.2630605,95006.0,95005.0,0.2104393]
[1745919918423,0.3298205,95006.0,95005.0,0.2104393]
[1745919918622,0.5403305,95006.0,95005.0,0.2420393]
[1745919919124,0.6603305,95006.0,95005.0,0.2420393]
[1745919919326,0.6894951,95006.0,95005.0,0.2420393]
[1745919919524,0.6924951,95006.0,95005.0,0.2420393]
[1745919920323,0.6924951,95006.0,95005.0,0.2104393]
[1745919920822,0.6954951,95006.0,95005.0,0.2104393]
[1745919921022,0.2630596,95004.0,95003.0,0.2104451]
[1745919921326,0.2104482,95002.0,95001.0,0.2951584]
[1745919921825,0.4209682,95002.0,95001.0,0.2951584]
[1745919922028,0.4866682,95002.0,95001.0,0.2951584]
[1745919922232,0.6066682,95002.0,95001.0,0.2951584]
[1745919922725,0.6086682,95002.0,95001.0,0.2630584]
[1745919924128,0.6106682,95002.0,95001.0,0.2630584]
[1745919931730,0.6106682,95002.0,95001.0,0.2104459]
[1745919932127,0.9714682,95002.0,95001.0,0.2104459]
[1745919932539,0.6106682,95002.0,95001.0,0.2104459]
[1745919933221,0.6106682,95002.0,95001.0,0.2427459]
[1745919934429,0.6106682,95002.0,95001.0,0.0323]
[1745919934936,0.0526143,94998.0,94980.0,0.3608]
[1745919935237,0.676507,94994.0,94993.0,0.2104681]
[1745919935629,0.887047,94994.0,94993.0,0.2104681]
[1745919936222,1.007047,94994.0,94993.0,0.2104681]
[1745919937137,0.887047,94994.0,94993.0,0.2104681]
[1745919937634,0.57134,94994.0,94971.0,0.0526289]
[1745919937841,0.2105146,94973.0,94972.0,0.2631279]
[1745919938225,0.0932,94974.0,94973.0,0.2105124]
[1745919938430,0.3037102,94974.0,94973.0,0.4540024]
[1745919938625,0.3037102,94974.0,94973.0,0.4867024]
[1745919938933,0.32263013,94974.0,94973.0,0.4867024]
[1745919940232,0.22943013,94974.0,94973.0,0.2761124]
[1745919940631,0.01891993,94974.0,94973.0,0.2761124]
[1745919940832,0.2105257,94967.0,94966.0,0.26473092]
[1745919941232,0.4211257,94967.0,94966.0,0.26473092]
[1745919941836,0.4523257,94967.0,94966.0,0.26473092]
[1745919942039,0.4854257,94967.0,94966.0,0.26473092]
[1745919942241,0.6054257,94967.0,94966.0,0.26473092]
[1745919943229,0.0526349,94961.0,94946.0,0.0526429]
[1745919943532,0.2105457,94958.0,94952.0,0.0526393]
[1745919943737,0.2105457,94958.0,94954.0,0.2105538]
[1745919943935,0.4867657,94958.0,94956.0,0.2105496]
[1745919944131,0.6067657,94958.0,94956.0,0.2105496]
[1745919944339,0.6067657,94958.0,94957.0,0.21312755]
[1745919944533,0.6067657,94958.0,94957.0,0.21412755]
[1745919944936,0.6067657,94958.0,94957.0,0.21312755]
[1745919945138,0.6107657,94958.0,94957.0,0.21212755]
[1745919946330,0.6433657,94958.0,94957.0,0.21212755]
[1745919946530,0.64925147,94958.0,94957.0,0.21212755]
[1745919946730,0.65025147,94958.0,94957.0,0.21212755]
[1745919947139,0.65125147,94958.0,94957.0,0.21212755]
[1745919948929,0.65125147,94958.0,94957.0,0.00157965]
[1745919949441,0.2632452,94937.0,94934.0,0.00158007]
[1745919949635,0.2105967,94935.0,94934.0,0.21217837]
[1745919950039,0.2105967,94935.0,94934.0,0.42284837]
[1745919950341,0.3305967,94935.0,94934.0,0.42284837]
[1745919950638,0.3305967,94935.0,94934.0,0.42584837]
[1745919951237,0.5713967,94935.0,94934.0,0.42484837]
[1745919951440,0.5713967,94935.0,94934.0,0.42684837]
[1745919951838,0.3608,94935.0,94934.0,0.21617837]
[1745919952141,0.06668,94937.0,94936.0,0.2105945]
[1745919952341,0.2772722,94937.0,94936.0,0.2105945]
[1745919952542,0.2772722,94937.0,94936.0,0.4212645]
[1745919952745,0.2772722,94937.0,94936.0,0.4519645]
[1745919953243,0.3972722,94937.0,94936.0,0.4519645]